bitfinex/quotes_ETHUSD_20250220
["timestamp","ask_amount","ask_price","bid_price","bid_amount"]
[1740066985003,0.0075,2721.9,2721.7,7.34813]
[1740066985201,0.0075,2721.9,2721.7,3.67406]
[1740066986232,4.4702,2722.0,2721.5,7.34867]
[1740066986389,0.7964,2722.0,2721.3,0.72644996]
[1740066986593,0.7964,2722.0,2721.7,3.67414]
[1740066986796,0.7964,2722.0,2721.7,3.67417]
[1740066987293,0.7964,2722.0,2721.8,3.67403]
[1740066987495,0.7964,2722.0,2721.7,3.67417]
[1740066987703,0.7964,2722.0,2721.9,3.6739]
[1740066988031,0.8039,2722.0,2721.8,3.67403]
[1740066988330,0.8114,2722.0,2721.9,3.6739]
[1740066988628,0.7508,2722.3,2722.1,3.67354]
[1740066988827,0.7508,2722.3,2722.2,3.67349]
[1740066989322,5.2575,2722.6,2722.2,3.67349]
[1740066989529,0.8153,2722.6,2722.2,3.67349]
[1740066989702,0.8228,2722.6,2722.5,3.67309]
[1740066989907,0.8153,2722.6,2722.3,3.67327]
[1740066990127,0.8153,2722.6,2722.2,3.67337]
[1740066990833,0.8153,2722.6,2722.2,3.67342]
[1740066991594,0.015,2722.5,2722.1,3.67353]
[1740066992001,3.68815,2722.5,2722.0,3.67376]
[1740066992215,0.015,2722.5,2722.0,3.67376]
[1740066992423,0.015,2722.5,2722.1,3.6735]
[1740066992627,0.015,2722.3,2721.8,3.67399]
[1740066992835,0.7643,2722.2,2721.9,3.67383]
[1740066993030,0.7643,2722.2,2721.8,3.67397]
[1740066993233,0.7643,2722.2,2721.8,4.39280748]
[1740066993637,0.015,2722.1,2721.8,3.67396]
[1740066993806,0.015,2722.1,2721.7,3.67416]
[1740066994134,0.015,2722.1,2721.8,3.67401]
[1740066994335,0.015,2722.1,2721.6,4.41005377]
[1740066994640,0.015,2722.1,2721.8,3.67402]
[1740066994845,0.015,2722.1,2721.9,3.67386]
[1740066995039,0.7643,2722.2,2722.1,3.67363]
[1740066995403,0.7643,2722.2,2722.0,3.67375]
[1740066995617,0.7643,2722.2,2722.0,3.67369]
[1740066995902,0.7643,2722.2,2722.1,3.67363]
[1740066996325,5.265,2722.3,2722.2,3.67349]
[1740066996517,0.0075,2722.3,2722.2,3.67349]
[1740066996701,0.0075,2722.3,2722.0,3.67369]
[1740066997405,0.0075,2722.3,2721.6,0.73584377]
[1740066997406,0.7757,2722.2,2721.6,0.73584377]
[1740066997607,0.7757,2722.2,2721.9,3.67379]
[1740066997808,0.7757,2722.2,2722.1,3.67363]
[1740066999124,0.7757,2722.2,2721.6,0.73584377]
[1740066999303,0.772021,2722.2,2721.7,3.67417]
[1740066999508,0.772021,2722.2,2721.9,3.67389]
[1740066999926,0.772021,2722.2,2721.8,4.11497138]
[1740067000336,4.445631,2722.2,2721.7,3.67416]
[1740067000537,4.445631,2722.2,2721.6,4.41014377]
[1740067000538,3.67364,2722.1,2721.6,4.41014377]
[1740067000740,3.68149,2721.9,2721.4,3.67457]
[1740067001251,0.0075,2721.8,2721.4,4.409501]
[1740067001552,0.0075,2721.8,2721.4,0.734931]
[1740067001854,0.0075,2721.8,2721.4,4.409471]
[1740067002251,0.015,2721.9,2721.4,4.409471]
[1740067002418,3.68898,2721.9,2721.4,4.409471]
[1740067002618,3.68898,2721.9,2721.4,3.67454]
[1740067002952,0.7678,2721.7,2721.5,3.67442]
[1740067003157,0.7678,2721.7,2721.3,7.34924]
[1740067003452,0.7678,2721.7,2721.3,7.34926]
[1740067003620,4.44203,2721.7,2721.2,3.6748]
[1740067003825,0.7678,2721.7,2721.2,3.67473]
[1740067004046,0.7678,2721.7,2721.2,1.76466198]
[1740067004225,0.7678,2721.7,2721.3,3.67461]
[1740067004555,0.7678,2721.7,2721.3,7.34926]
[1740067004754,0.7678,2721.7,2721.2,4.40445198]
[1740067004952,0.015,2721.6,2721.2,0.72970198]
[1740067005155,3.68937,2721.6,2720.9,6.67523]
[1740067005453,3.68933,2721.6,2721.1,3.67486]
[1740067005661,3.68933,2721.6,2721.1,4.40581347]
[1740067006157,0.015,2721.6,2721.1,4.40581347]
[1740067006321,3.68932,2721.6,2721.1,4.40581347]
[1740067006523,0.015,2721.6,2721.2,3.67473]
[1740067006723,0.015,2721.6,2721.2,0.91706068]
[1740067007218,3.68937,2721.6,2721.2,0.91706068]
[1740067007848,0.015,2721.6,2721.2,4.59181068]
[1740067008052,0.015,2721.6,2721.2,0.91706068]
[1740067008253,0.015,2721.6,2721.2,4.59188068]
[1740067009361,0.7678,2721.7,2721.3,0.53228342]
[1740067009558,4.442,2721.7,2721.2,7.34951]
[1740067009758,0.7678,2721.7,2721.3,3.67466]
[1740067010069,3.67473,2721.3,2720.8,4.49162]
[1740067010275,3.67473,2721.3,2720.9,0.72984965]
[1740067010925,3.67491,2721.2,2720.9,0.72984965]
[1740067011339,4.42561,2721.2,2720.9,0.72984965]
[1740067011764,0.7507,2721.2,2720.9,0.72984965]
[1740067011927,0.7507,2721.2,2721.0,3.67511]
[1740067012124,0.7507,2721.2,2720.9,5.21315061]
[1740067012357,3.69005,2721.1,2720.6,3.67564]
[1740067012927,0.015,2720.9,2720.6,3.67564]
[1740067013128,3.67546,2720.8,2720.3,5.23026559]
[1740067013333,3.67546,2720.8,2720.4,1.6192839]
[1740067013523,0.8026,2720.7,2720.4,4.40449034]
[1740067014067,0.8026,2720.7,2720.5,3.67568]
[1740067014566,3.69005,2721.1,2720.4,0.72864034]
[1740067014567,0.8382,2721.0,2720.8,3.67532]
[1740067014760,6.1432,2721.2,2720.9,3.67525]
[1740067014968,6.1432,2721.2,2720.9,3.67516]
[1740067015143,6.1432,2721.2,2720.9,7.35034]
[1740067015357,6.1432,2721.2,2720.9,7.35033]
[1740067015556,6.1432,2721.2,2720.7,3.67543]
[1740067015750,9.81807,2721.2,2720.7,3.67543]
[1740067015942,0.015,2720.9,2720.5,3.67569]
[1740067016342,0.015,2720.9,2720.7,3.67549]
[1740067016572,0.015,2721.0,2720.6,3.67563]
[1740067016742,0.015,2721.0,2720.7,3.6754]
[1740067016937,0.015,2721.0,2720.7,3.67545]
[1740067017144,0.015,2721.0,2720.8,3.67538]
[1740067017344,0.015,2721.0,2720.6,3.67561]
[1740067017647,0.015,2721.1,2720.4,0.72864034]
[1740067017839,0.8142,2720.7,2720.3,5.23024559]
[1740067018039,0.8142,2720.7,2720.3,1.55425559]
[1740067018244,3.67573,2720.6,2720.3,1.55425559]
[1740067018473,3.67593,2720.4,2719.9,3.6766]
[1740067018674,0.015,2720.5,2719.9,3.6766]
[1740067018868,3.67595,2720.4,2719.9,4.12148]
[1740067019066,0.015,2720.5,2719.6,0.7876]
[1740067019067,0.8154,2720.3,2719.6,3.67694]
[1740067019282,0.0075,2720.1,2719.7,0.73003874]
[1740067019447,0.0075,2720.0,2719.5,3.67709]
[1740067019763,0.0075,2720.0,2719.7,3.67686]
[1740067019945,0.015,2720.1,2719.7,3.67686]
[1740067020149,0.015,2720.1,2719.3,0.7876]
[1740067020347,0.8154,2720.3,2720.0,3.67638]
[1740067020743,0.8154,2720.3,2719.6,7.55358783]
[1740067021050,0.8009,2720.6,2719.9,3.13082868]
[1740067021272,0.8292,2720.9,2720.4,3.67588]
[1740067021476,0.8292,2720.9,2720.4,4.411072]
[1740067021647,0.8292,2720.9,2720.5,3.67575]
[1740067022382,4.50446,2720.9,2720.4,4.411082]
[1740067022768,4.50446,2720.9,2720.4,0.735192]
[1740067022971,3.67542,2720.8,2720.4,0.735192]
[1740067023312,0.8292,2720.9,2720.7,3.67551]
[1740067023485,0.7636,2721.2,2721.1,3.67498]
[1740067023649,0.7561,2721.2,2721.0,3.67504]
[1740067023853,3.68257,2721.1,2720.5,0.4411222]
[1740067024048,0.0075,2721.0,2720.4,5.14105617]
[1740067024274,0.0075,2721.0,2720.4,1.46523617]
[1740067024589,3.67535,2720.9,2720.4,4.40593417]
[1740067025656,3.67539,2720.8,2720.4,0.73004417]
[1740067025951,0.0075,2720.9,2720.2,3.67613]
[1740067026276,3.67575,2720.6,2720.0,3.67637]
[1740067026453,3.69061,2720.7,2720.1,3.67626]
[1740067026648,0.015,2720.7,2720.0,3.67637]
[1740067026981,3.67572,2720.6,2720.0,4.424607]
[1740067027182,3.67572,2720.6,2720.1,3.67632]
[1740067027359,3.67594,2720.4,2719.8,4.48284]
[1740067027560,3.67594,2720.4,2719.6,9.05693]
[1740067027561,0.7598,2720.3,2719.6,9.05693]
[1740067027762,0.015,2719.9,2719.2,0.7832]
[1740067027970,0.015,2719.8,2719.3,3.6773]
[1740067028149,0.015,2719.8,2719.2,3.67744]
[1740067028349,3.677,2719.7,2719.3,0.72695139]
[1740067028576,4.43651,2719.6,2719.3,0.72695139]
[1740067028775,3.67728,2719.4,2719.1,0.75293163]
[1740067028973,3.67728,2719.4,2719.0,0.002]
[1740067029173,0.015,2719.5,2719.0,3.6798]
[1740067029382,3.69227,2719.5,2719.0,0.002]
[1740067029683,3.67731,2719.4,2719.0,0.002]
[1740067029887,3.67757,2719.2,2719.0,0.002]
[1740067030186,0.015,2719.3,2719.0,0.002]
[1740067030387,0.8119,2719.1,2719.0,0.002]
[1740067030589,0.7969,2719.1,2719.0,3.67982]
[1740067030753,5.32,2719.3,2719.2,3.67755]
[1740067030957,0.0075,2720.0,2719.8,3.67672]
[1740067031159,0.0075,2720.0,2719.6,3.67692]
[1740067031358,0.015,2720.0,2719.6,3.67692]
[1740067031885,0.015,2720.0,2719.9,3.6766]
[1740067032086,0.828,2720.1,2719.7,3.6768]
[1740067032285,0.828,2720.1,2719.6,1.462352]
[1740067032286,0.015,2720.0,2719.6,1.462352]
[1740067032651,0.015,2720.0,2719.6,0.735414]
[1740067032855,0.015,2720.0,2719.5,3.67704]
[1740067033186,0.015,2720.0,2719.7,3.67683]
[1740067033357,0.828,2720.1,2719.7,3.67683]
[1740067033554,0.828,2720.1,2720.0,3.67647]
[1740067034369,0.828,2720.1,2719.9,3.6766]
[1740067034566,0.828,2720.1,2720.0,3.67647]
[1740067035405,0.828,2720.1,2719.9,3.6766]
[1740067035820,0.828,2720.1,2720.0,3.67647]
[1740067036820,0.828,2720.1,2719.9,3.6766]
[1740067037113,0.015,2720.0,2719.8,3.67672]
[1740067037312,0.015,2720.0,2719.7,3.67681]
[1740067037514,0.015,2720.0,2719.5,4.42625982]
[1740067037695,0.466943,2720.0,2719.3,3.67733]
[1740067037864,0.015,2719.6,2719.1,3.67757]
[1740067038065,0.015,2719.6,2719.4,3.67728]
[1740067038380,0.0075,2719.6,2719.5,3.67714]
[1740067038574,0.8202,2719.7,2719.1,3.67765]
[1740067038780,0.8202,2719.7,2719.6,3.67701]
[1740067038781,0.8277,2719.7,2719.6,3.67701]
[1740067038976,0.8277,2719.7,2719.5,3.67713]
[1740067039374,0.8277,2719.7,2719.6,3.67701]
[1740067039997,0.0075,2719.7,2719.6,3.67701]
[1740067040164,0.0075,2719.9,2719.7,3.67686]
[1740067040371,0.0075,2719.9,2719.0,3.7266286]
[1740067040571,0.015,2719.9,2719.2,3.67749]
[1740067040768,0.015,2719.9,2719.7,3.67674]
[1740067041198,0.015,2719.9,2719.8,3.67674]
[1740067041804,0.015,2719.9,2719.3,0.8315]
[1740067042006,0.015,2719.9,2719.7,3.67678]
[1740067042310,0.015,2719.9,2719.8,3.67674]
[1740067042678,6.1212,2720.0,2719.8,3.67674]
[1740067042679,6.1212,2720.0,2719.9,3.6766]
[1740067043006,0.794,2720.3,2719.9,3.6766]
[1740067043211,0.794,2720.3,2719.8,3.67674]
[1740067043414,0.0075,2720.2,2719.8,3.67674]
[1740067043611,0.0075,2720.2,2719.9,3.6766]
[1740067043809,0.0075,2720.2,2720.0,3.67638]
[1740067044015,0.0075,2720.2,2720.1,3.67633]
[1740067044835,0.0075,2720.2,2720.0,3.67638]
[1740067045631,0.0075,2720.2,2720.1,3.67633]
[1740067045984,0.7865,2720.3,2720.2,3.6762]
[1740067046182,0.7865,2720.3,2719.7,0.71980323]
[1740067046492,0.0075,2720.2,2719.7,4.39659323]
[1740067046684,0.015,2719.8,2719.4,3.67716]
[1740067046885,0.015,2719.8,2719.1,0.74044786]
[1740067046886,0.015,2719.6,2719.1,3.67758]
[1740067047108,3.67691,2719.7,2719.1,3.67758]
[1740067047109,0.015,2719.4,2719.1,3.67758]
[1740067047410,0.015,2719.4,2719.0,3.67981]
[1740067047806,0.015,2719.4,2719.0,0.002]
[1740067048217,3.67763,2719.2,2719.0,0.002]
[1740067048402,0.7801,2719.1,2719.0,0.002]
[1740067049512,0.0075,2719.2,2719.0,0.002]
[1740067049718,0.015,2719.2,2719.0,0.002]
[1740067050282,3.69268,2719.1,2719.0,0.002]
[1740067050485,1.365644,2719.1,2719.0,0.002]
[1740067051118,0.015,2719.1,2719.0,0.002]
[1740067051320,4.24268,2719.1,2719.0,0.002]
[1740067051489,1.3722,2719.1,2719.0,0.002]
[1740067052413,4.49988,2719.1,2719.0,0.002]
[1740067052582,5.04988,2719.1,2719.0,0.002]
[1740067052787,6.454635,2719.1,2719.0,0.002]
[1740067052998,14.774635,2719.1,2719.0,0.002]
[1740067054692,14.224635,2719.1,2719.0,0.002]
[1740067054893,9.1422,2719.1,2719.0,0.002]
[1740067055106,9.81988,2719.1,2719.0,0.002]
[1740067056534,6.1422,2719.1,2719.0,0.002]
[1740067056897,0.8222,2719.1,2719.0,0.002]
[1740067057698,0.015,2719.1,2719.0,3.67982]
[1740067058104,0.0075,2719.3,2719.1,3.67766]
[1740067058299,0.0075,2719.3,2719.0,0.002]
[1740067058634,0.015,2719.3,2719.1,3.67767]
[1740067058838,0.015,2718.7,2717.4,0.29631444]
[1740067059005,5.3501783,2717.5,2717.4,0.11344626]
[1740067059331,0.8285,2717.9,2717.4,0.11344626]
[1740067059539,0.0075,2717.8,2717.4,0.11344626]
[1740067059711,0.015,2717.8,2717.4,0.11344626]
[1740067059899,3.69445,2717.8,2717.4,0.11344626]
[1740067060098,0.015,2717.8,2717.4,0.11344626]
[1740067060343,0.0075,2718.1,2717.4,0.57303289]
[1740067060498,0.0075,2718.2,2717.6,3.67963]
[1740067060702,0.015,2718.2,2717.7,0.7268642]
[1740067061019,0.0075,2718.4,2717.7,0.7268642]
[1740067061356,3.67878,2718.3,2717.7,4.4064142]
[1740067061533,3.67878,2718.3,2717.7,0.7268642]
[1740067061744,0.0075,2718.8,2718.2,3.67882]
[1740067061909,3.67823,2718.7,2717.8,0.7956]
[1740067062103,3.67811,2718.8,2718.1,3.67894]
[1740067062307,3.67844,2718.6,2717.8,1.0826]
[1740067062510,0.015,2718.7,2718.0,3.67907]
[1740067062802,3.67838,2718.6,2718.0,3.67907]
[1740067063164,4.45189,2717.7,2717.4,0.11344626]
[1740067063365,0.445189,2717.6,2717.4,0.11344626]
[1740067063659,0.0075,2717.6,2717.4,0.11344626]
[1740067064203,4.49965,2717.5,2717.4,0.11344626]
[1740067064598,4.49965,2717.5,2716.7,0.73501936]
[1740067064599,0.0075,2716.9,2716.7,0.73501936]
[1740067064799,4.4931,2716.8,2715.9,3.68198]
[1740067065036,0.0075,2716.7,2716.1,3.68162]
[1740067065247,5.86759813,2716.8,2715.6,0.8149]
[1740067065248,0.8123,2716.8,2715.6,0.8149]
[1740067065422,0.0075,2717.1,2716.6,0.74961214]
[1740067065600,0.015,2716.9,2716.6,0.74961214]
[1740067065915,0.015,2716.9,2716.6,3.68101]
[1740067066110,0.015,2716.9,2716.2,3.68152]
[1740067066353,0.015,2716.9,2716.5,3.6811]
[1740067066551,0.8123,2717.2,2716.5,0.75285498]
[1740067066552,0.015,2717.0,2716.5,0.75285498]
[1740067066711,0.0075,2716.9,2716.5,0.75285498]
[1740067066905,0.015,2716.7,2716.5,0.75285498]
[1740067067206,4.48077,2716.6,2716.5,0.75285498]
[1740067067507,9.41022832,2716.6,2716.5,0.75285498]
[1740067068060,3.68174,2716.1,2715.5,3.68247]
[1740067068236,0.015,2715.8,2715.0,1.0859]
[1740067068401,0.7508,2715.9,2715.5,3.68246]
[1740067068600,0.7508,2715.9,2715.7,0.7460745]
[1740067069760,3.69715,2715.8,2715.7,0.7460745]
[1740067069903,0.015,2715.8,2715.7,0.7460745]
[1740067070099,0.0075,2715.8,2715.7,0.7460745]
[1740067070303,0.0075,2716.0,2715.7,0.7460745]
[1740067070604,0.015,2716.0,2715.7,0.7460745]
[1740067070800,0.0075,2716.0,2715.7,0.7460745]
[1740067071237,0.015,2715.8,2715.7,0.7460745]
[1740067071440,0.015,2715.7,2715.2,3.68287]
[1740067071638,0.015,2715.7,2715.5,3.68253]
[1740067071810,0.0075,2715.7,2715.4,4.426653]
[1740067072429,0.8119,2715.4,2713.6,1.09377482]
[1740067072603,0.8119,2714.5,2714.1,0.73917564]
[1740067074410,0.015,2714.9,2714.2,0.87207576]
[1740067074641,0.0075,2715.4,2714.7,3.68364]
[1740067074920,0.015,2715.2,2714.7,3.68364]
[1740067075132,0.015,2715.2,2714.5,3.68389]
[1740067075332,0.015,2715.2,2714.6,3.68377]
[1740067075639,0.015,2715.2,2714.6,3.68365]
[1740067075843,0.015,2715.2,2714.2,0.87207576]
[1740067076012,9.00259,2715.5,2714.2,0.87207576]
[1740067076013,5.32,2715.5,2714.2,0.87207576]
[1740067076213,3.68218,2715.8,2715.2,3.68296]
[1740067076417,0.7562,2715.9,2715.2,3.68296]
[1740067076623,0.0075,2715.8,2715.4,3.68258]
[1740067076811,0.0075,2716.2,2715.7,3.68225]
[1740067077217,0.996194,2716.2,2715.6,3.6823]
[1740067077432,0.981194,2716.2,2715.9,3.68198]
[1740067077633,4.48412,2716.7,2716.1,3.68166]
[1740067077953,0.8031,2716.7,2716.1,3.68166]
[1740067078144,0.8031,2716.7,2716.3,3.68143]
[1740067078448,0.8031,2716.7,2716.1,3.68166]
[1740067078672,0.28158156,2717.3,2715.9,4.29552955]
[1740067078673,0.8218,2717.3,2715.9,4.29552955]
[1740067078967,1.271991,2717.3,2716.8,3.68072]
[1740067079116,0.8218,2717.3,2716.7,3.68093]
[1740067079441,0.8218,2717.3,2716.9,3.68055]
[1740067079751,0.8218,2717.3,2716.3,0.7541]
[1740067079917,0.8218,2717.3,2716.7,3.68082]
[1740067080317,1.271969,2717.3,2716.9,3.68063]
[1740067080616,9.00723,2717.6,2716.8,3.68067]
[1740067080822,3.68032,2717.2,2716.6,0.306]
[1740067081027,8.99972,2717.6,2716.6,0.306]
[1740067081228,5.32,2717.6,2717.2,3.68023]
[1740067081742,0.8039,2717.7,2717.2,3.68025]
[1740067081906,0.8039,2717.7,2717.3,3.68012]
[1740067082105,1.784233,2717.7,2716.7,3.68093]
[1740067082363,0.7617,2718.1,2717.8,3.67944]
[1740067082662,1.88853347,2718.3,2717.6,3.67971]
[1740067082863,5.32,2718.7,2718.2,3.67887]
[1740067083059,0.7617,2718.9,2718.3,3.67866]
[1740067083260,0.7617,2718.9,2717.4,1.04482855]
[1740067083261,3.67837,2718.6,2717.4,1.04482855]
[1740067083570,0.0075,2718.7,2718.1,3.67901]
[1740067083721,0.0075,2718.7,2717.6,0.7825]
[1740067083722,0.443957,2718.8,2717.7,3.67958]
[1740067084055,4.43974,2718.9,2718.2,3.67889]
[1740067084273,0.7617,2718.9,2718.2,3.67889]
[1740067084458,3.67861,2718.5,2717.8,3.67941]
[1740067084836,7.35724,2718.5,2717.8,3.67941]
[1740067085035,0.735724,2718.4,2717.8,3.67941]
[1740067085235,3.67861,2718.5,2717.8,3.67941]
[1740067085431,4.43966,2718.9,2718.0,3.67916]
[1740067085657,3.67829,2718.7,2718.0,3.67909]
[1740067085863,3.67838,2718.6,2718.0,3.67909]
[1740067086325,3.68563,2718.8,2718.0,3.67909]
[1740067086526,3.67836,2718.6,2718.0,3.67909]
[1740067086935,3.67872,2718.4,2717.8,4.40835976]
[1740067087140,7.35682,2718.6,2718.0,0.307]
[1740067087343,3.67849,2718.5,2718.0,0.307]
[1740067087654,3.67872,2718.4,2718.0,0.307]
[1740067087955,4.41443,2718.4,2718.0,0.307]
[1740067088157,0.015,2718.3,2717.4,3.6799]
[1740067088364,3.67938,2717.9,2717.3,0.7352979]
[1740067088522,7.35879,2717.9,2717.3,0.7352979]
[1740067088721,3.67963,2717.7,2717.2,0.307]
[1740067088929,0.0075,2717.6,2717.1,3.98738]
[1740067089129,0.0075,2717.6,2717.1,4.71346549]
[1740067089647,0.735879,2717.8,2717.1,1.03308549]
[1740067089831,3.67939,2717.9,2717.3,3.68003]
[1740067090029,3.67958,2717.7,2717.1,4.71340549]
[1740067090272,3.67978,2717.6,2717.1,3.98731]
[1740067090475,3.67958,2717.7,2717.1,3.98731]
[1740067090707,3.67958,2717.7,2717.1,7.36063]
[1740067090898,0.367958,2717.6,2717.3,3.68008]
[1740067091103,3.67936,2717.9,2717.3,3.68008]
[1740067091256,4.5075,2718.1,2717.1,0.307]
[1740067091603,5.32,2718.2,2717.9,3.67928]
[1740067091902,0.0075,2718.3,2717.8,3.67941]
[1740067092107,0.0075,2718.3,2717.9,3.6793]
[1740067092278,0.974192,2718.2,2717.9,3.6793]
[1740067092474,4.653102,2718.2,2717.7,3.67956]
[1740067092893,3.67904,2718.1,2717.6,3.67969]
[1740067093709,3.67924,2718.0,2717.4,3.67989]
[1740067093866,0.367924,2717.9,2717.2,0.306]
[1740067094065,0.367924,2717.9,2717.4,3.67991]
[1740067094992,5.32,2718.1,2718.0,3.67917]
[1740067095178,0.974192,2718.2,2718.0,3.67917]
[1740067095372,0.974192,2718.2,2717.8,3.67935]
[1740067095765,0.974192,2718.2,2717.9,3.67929]
[1740067095971,0.974192,2718.2,2717.8,3.67935]
[1740067096168,0.4652962,2718.1,2717.6,7.35928]
[1740067096383,0.4652962,2718.1,2717.7,3.67957]
[1740067096584,0.4652962,2718.1,2717.3,4.42616146]
[1740067096585,0.974192,2718.2,2717.3,0.74610146]
[1740067097091,0.974192,2718.2,2717.8,3.67937]
[1740067097278,0.7918,2718.1,2717.9,3.67928]
[1740067097461,0.974192,2718.2,2717.9,3.67928]
[1740067097654,0.974192,2718.2,2718.0,3.67916]
[1740067098089,5.32,2718.4,2718.2,3.67879]
[1740067098788,0.0075,2718.8,2718.0,3.67911]
[1740067098990,0.7587,2719.0,2718.0,3.67911]
[1740067099329,0.7587,2719.0,2718.2,0.72269712]
[1740067099515,3.6775,2719.3,2718.6,3.67828]
[1740067099815,1.267485,2719.2,2718.8,3.67803]
[1740067100010,1.267485,2719.2,2718.2,4.65593248]
[1740067100216,0.0075,2719.3,2718.8,3.67796]
[1740067100561,0.015,2719.3,2718.8,3.67796]
[1740067100883,3.6925,2719.3,2718.7,3.67817]
[1740067101226,0.0075,2719.1,2718.6,3.67825]
[1740067101364,0.0075,2718.9,2718.3,3.67876]
[1740067101716,0.368533,2718.8,2718.5,3.67838]
[1740067101911,0.0075,2719.0,2718.6,3.67836]
[1740067102394,0.0075,2719.1,2718.8,3.67799]
[1740067102585,0.0075,2719.1,2718.6,3.67824]
[1740067102935,0.0075,2719.0,2718.6,3.67834]
[1740067103107,0.0075,2719.0,2718.6,7.35663]
[1740067103303,0.376757,2719.0,2718.6,3.67829]
[1740067103503,0.376757,2719.0,2718.7,3.67812]
[1740067103798,0.376757,2719.0,2718.6,3.67829]
[1740067104095,0.376757,2719.0,2718.7,3.67811]
[1740067104299,0.0075,2719.1,2718.3,0.306]
[1740067104502,0.0075,2719.1,2718.5,3.67842]
[1740067104798,0.0075,2719.1,2718.3,0.306]
[1740067104986,0.0075,2719.3,2718.8,3.67802]
[1740067105186,0.0075,2719.1,2718.6,3.67827]
[1740067105395,3.6927,2719.1,2718.6,3.67827]
[1740067105697,0.015,2719.1,2718.8,3.67796]
[1740067105900,0.015,2719.1,2718.6,3.67827]
[1740067106062,0.015,2719.1,2718.6,0.74713891]
[1740067106269,0.0075,2719.5,2718.6,1.2666118]
[1740067106568,0.0075,2719.5,2719.1,3.6776]
[1740067106776,0.015,2719.5,2719.1,3.6776]
[1740067107182,3.67755,2719.2,2718.7,3.98315]
[1740067107681,3.6777,2719.1,2718.6,0.74713891]
[1740067107882,4.414725,2719.1,2718.6,4.42548891]
[1740067108201,0.737025,2719.1,2718.6,4.42542891]
[1740067108398,3.67796,2718.9,2718.6,0.74713891]
[1740067108604,0.0075,2718.8,2718.3,3.98275]
[1740067108765,0.0075,2718.8,2718.4,3.67863]
[1740067108970,0.0075,2718.8,2718.5,3.67841]
[1740067109182,0.0075,2718.8,2718.4,4.39976418]
[1740067109418,0.0075,2718.8,2718.5,3.67849]
[1740067109628,0.0075,2718.8,2718.7,3.67822]
[1740067109800,0.0075,2719.0,2718.6,3.67835]
[1740067110207,0.9053305,2719.0,2718.6,3.67835]
[1740067110441,0.9053305,2719.0,2718.7,3.67816]
[1740067110602,0.015,2719.0,2718.8,3.67796]
[1740067111233,0.015,2719.0,2718.6,7.35656]
[1740067111540,0.015,2719.0,2718.6,3.67827]
[1740067111933,0.015,2719.0,2718.4,0.72113418]
[1740067112139,0.015,2719.0,2718.7,3.67814]
[1740067112641,3.69289,2719.0,2718.5,3.67849]
[1740067112805,0.832399,2719.0,2718.4,4.39968418]
[1740067113010,0.015,2719.0,2718.8,3.67808]
[1740067113330,0.8034,2719.2,2718.7,3.67817]
[1740067113331,0.0075,2719.1,2718.7,3.67817]
[1740067113505,0.015,2719.1,2718.4,4.39974418]
[1740067113701,0.015,2719.1,2718.9,3.67793]
[1740067114006,0.015,2719.1,2718.8,3.67808]
[1740067114206,0.996582,2719.1,2718.5,3.6784]
[1740067114415,0.996582,2719.1,2718.6,3.67836]
[1740067115035,0.996582,2719.1,2718.7,3.6782]
[1740067115236,0.996582,2719.1,2718.7,3.67816]
[1740067116142,0.996582,2719.1,2718.7,7.3563]
[1740067116308,0.996582,2719.1,2718.7,3.67814]
[1740067116510,0.996582,2719.1,2718.4,1.02313418]
[1740067116837,0.015,2719.1,2718.7,3.67811]
[1740067117042,0.015,2719.1,2718.8,3.67807]
[1740067117210,0.015,2719.1,2718.8,3.67801]
[1740067117406,0.015,2719.1,2718.8,3.67806]
[1740067117842,0.015,2719.1,2718.8,3.678]
[1740067118438,6.1234,2719.2,2719.0,3.67775]
[1740067118639,0.8034,2719.2,2718.9,3.67788]
[1740067118829,0.0075,2719.4,2719.1,3.67762]
[1740067119032,6.1174,2719.5,2719.2,3.67752]
[1740067119358,0.7974,2719.5,2719.0,3.67775]
[1740067119537,4.47455,2719.5,2719.1,3.67768]
[1740067119850,0.7974,2719.5,2719.1,3.67768]
[1740067120408,0.7974,2719.5,2719.1,3.67762]
[1740067120608,4.47456,2719.5,2719.0,3.67772]
[1740067120816,0.462456,2719.4,2718.9,0.72796369]
[1740067121071,4.139746,2719.4,2718.9,0.72796369]
[1740067121213,4.139746,2719.4,2718.9,4.40591369]
[1740067121418,3.67744,2719.3,2718.9,0.72796369]
[1740067121612,0.462456,2719.4,2718.9,4.40591369]
[1740067121851,4.139756,2719.4,2718.9,4.40591369]
[1740067122030,3.67747,2719.3,2718.9,0.72796369]
[1740067122329,4.139746,2719.4,2718.9,4.40590369]
[1740067122664,0.462456,2719.4,2718.9,4.40590369]
[1740067122963,4.139796,2719.4,2718.9,4.40590369]
[1740067123161,3.67748,2719.3,2718.9,0.72796369]
[1740067123368,0.01,2719.2,2718.9,0.72796369]
[1740067123663,3.67801,2718.9,2718.5,5.38]
[1740067123969,3.67792,2719.0,2718.5,7.35686]
[1740067124166,3.67792,2719.0,2718.6,3.67836]
[1740067124970,3.6852,2719.1,2718.6,3.67836]
[1740067125272,3.67784,2719.0,2718.6,0.74777573]
[1740067125424,0.0075,2719.1,2718.6,0.74777573]
[1740067125769,0.0075,2719.1,2718.7,3.67822]
[1740067125977,0.0075,2719.1,2718.8,3.67809]
[1740067126323,0.0075,2719.1,2718.9,3.67794]